[Event "Titled Tuesday Blitz December 06 Early 2022"]
[White "Boyer, Mahel"]
[Black "Zhigalko, Sergei"]
[WhiteFideId "45102422"]
[BlackFideId "13502956"]
[WhiteElo "2455"]
[BlackElo "2662"]
[Result "1-0"]
[Round "05"]
[TimeControl "180+1"]
[Date "2022.12.06"]
[WhiteClock "0:00:04"]
[BlackClock "0:00:02"]

1. d4 {[%clk 0:03:00]}  Nf6 {[%clk 0:03:00]} 2. c4 {[%clk 0:03:00]}  e6 {[%clk 0:03:00]} 3. Nf3 {[%clk 0:03:00]}  b6 {[%clk 0:03:00]} 4. a3 {[%clk 0:02:53]}  Ba6 {[%clk 0:03:00]} 5. Qc2 {[%clk 0:02:42]}  Bb7 {[%clk 0:02:59]} 6. Nc3 {[%clk 0:02:35]}  c5 {[%clk 0:02:56]} 7. d5 {[%clk 0:02:35]}  exd5 {[%clk 0:02:56]} 8. cxd5 {[%clk 0:02:36]}  Nxd5 {[%clk 0:02:56]} 9. e4 {[%clk 0:02:37]}  Nxc3 {[%clk 0:02:51]} 10. Qxc3 {[%clk 0:02:38]}  Bxe4 {[%clk 0:02:29]} 11. Bc4 {[%clk 0:02:26]}  Qf6 {[%clk 0:01:37]} 12. Ne5 {[%clk 0:01:00]}  Bg6 {[%clk 0:01:22]} 13. Bd5 {[%clk 0:00:27]}  Nc6 {[%clk 0:01:19]} 14. Nxc6 {[%clk 0:00:26]}  Qxc3+ {[%clk 0:01:06]} 15. bxc3 {[%clk 0:00:25]}  Bd6 {[%clk 0:01:07]} 16. Na5 {[%clk 0:00:15]}  Be5 {[%clk 0:00:51]} 17. Kd2 {[%clk 0:00:09]}  O-O-O {[%clk 0:00:42]} 18. Nc4 {[%clk 0:00:09]}  Bc7 {[%clk 0:00:35]} 19. Kd1 {[%clk 0:00:07]}  b5 {[%clk 0:00:27]} 20. Ne3 {[%clk 0:00:07]}  Be5 {[%clk 0:00:28]} 21. Bd2 {[%clk 0:00:06]}  Rhe8 {[%clk 0:00:29]} 22. Kc1 {[%clk 0:00:04]}  Kc7 {[%clk 0:00:20]} 23. Rd1 {[%clk 0:00:04]}  h5 {[%clk 0:00:13]} 24. Ra2 {[%clk 0:00:05]}  a5 {[%clk 0:00:12]} 25. Bf3 {[%clk 0:00:04]}  Kb6 {[%clk 0:00:05]} 26. Nd5+ {[%clk 0:00:04]}  Ka7 {[%clk 0:00:05]} 27. Be3 {[%clk 0:00:05]}  d6 {[%clk 0:00:05]} 28. a4 {[%clk 0:00:03]}  b4 {[%clk 0:00:02]} 29. cxb4 {[%clk 0:00:04]}  axb4 {[%clk 0:00:02]} 30. Nxb4 {[%clk 0:00:05]}  Kb6 {[%clk 0:00:01]} 31. a5+ {[%clk 0:00:04]}  Kc7 {[%clk 0:00:01]} 32. Nd5+ {[%clk 0:00:03]}  Kd7 {[%clk 0:00:01]} 33. Nb6+ {[%clk 0:00:03]}  Ke6 {[%clk 0:00:01]} 34. Bd5+ {[%clk 0:00:02]}  Kf5 {[%clk 0:00:01]} 35. a6 {[%clk 0:00:03]}  Rb8 {[%clk 0:00:01]} 36. Bb7 {[%clk 0:00:02]}  Re7 {[%clk 0:00:01]} 37. Nd5 {[%clk 0:00:03]}  Rexb7 {[%clk 0:00:01]} 38. axb7 {[%clk 0:00:03]}  Rxb7 {[%clk 0:00:02]} 39. f3 {[%clk 0:00:03]}  Ke6 {[%clk 0:00:02]} 40. Rc2 {[%clk 0:00:01]}  Bxc2 {[%clk 0:00:02]} 41. Kxc2 {[%clk 0:00:02]}  Rb2+ {[%clk 0:00:03]} 42. Kc1 {[%clk 0:00:02]}  Rxg2 {[%clk 0:00:04]} 43. f4 {[%clk 0:00:02]}  Bd4 {[%clk 0:00:03]} 44. Nc7+ {[%clk 0:00:02]}  Kd7 {[%clk 0:00:03]} 45. Bxd4 {[%clk 0:00:03]}  Kxc7 {[%clk 0:00:03]} 46. Bc3 {[%clk 0:00:02]}  Rxh2 {[%clk 0:00:03]} 47. Bxg7 {[%clk 0:00:03]}  h4 {[%clk 0:00:03]} 48. Bf8 {[%clk 0:00:03]}  h3 {[%clk 0:00:03]} 49. Bxd6+ {[%clk 0:00:03]}  Kc6 {[%clk 0:00:04]} 50. f5 {[%clk 0:00:03]}  Rf2 {[%clk 0:00:04]} 51. Bb8 {[%clk 0:00:02]}  Rxf5 {[%clk 0:00:04]} 52. Rh1 {[%clk 0:00:03]}  Rf3 {[%clk 0:00:03]} 53. Kd2 {[%clk 0:00:04]}  Rb3 {[%clk 0:00:03]} 54. Bf4 {[%clk 0:00:03]}  Kd5 {[%clk 0:00:03]} 55. Kc2 {[%clk 0:00:03]}  c4 {[%clk 0:00:03]} 56. Bd2 {[%clk 0:00:02]}  f5 {[%clk 0:00:03]} 57. Bc3 {[%clk 0:00:01]}  Ra3 {[%clk 0:00:01]} 58. Rxh3 {[%clk 0:00:02]}  Ke4 {[%clk 0:00:01]} 59. Rh4+ {[%clk 0:00:02]}  f4 {[%clk 0:00:01]} 60. Bd2 {[%clk 0:00:02]}  Ra2+ {[%clk 0:00:02]} 61. Kc3 {[%clk 0:00:03]}  Ra3+ {[%clk 0:00:02]} 62. Kxc4 {[%clk 0:00:03]}  Rf3 {[%clk 0:00:02]} 63. Bc1 {[%clk 0:00:02]}  Rf1 {[%clk 0:00:02]} 64. Bd2 {[%clk 0:00:02]}  Rf2 {[%clk 0:00:02]} 65. Kc3 {[%clk 0:00:03]}  Rf3+ {[%clk 0:00:03]} 66. Kc2 {[%clk 0:00:03]}  Rf2 {[%clk 0:00:03]} 67. Kd1 {[%clk 0:00:04]}  Rf3 {[%clk 0:00:03]} 68. Ke2 {[%clk 0:00:04]}  Rb3 {[%clk 0:00:03]} 69. Rxf4+ {[%clk 0:00:05]}  Ke5 {[%clk 0:00:03]} 70. Ra4 {[%clk 0:00:06]}  Kd5 {[%clk 0:00:04]} 71. Kd1 {[%clk 0:00:05]}  Rb5 {[%clk 0:00:03]} 72. Kc2 {[%clk 0:00:06]}  Rc5+ {[%clk 0:00:03]} 73. Bc3 {[%clk 0:00:06]}  Rb5 {[%clk 0:00:04]} 74. Kd3 {[%clk 0:00:06]}  Kc5 {[%clk 0:00:04]} 75. Rh4 {[%clk 0:00:07]}  Kd5 {[%clk 0:00:04]} 76. Rh5+ {[%clk 0:00:07]}  Kc6 {[%clk 0:00:05]} 77. Rh6+ {[%clk 0:00:08]}  Kd5 {[%clk 0:00:05]} 78. Rg6 {[%clk 0:00:08]}  Kc5 {[%clk 0:00:05]} 79. Bd4+ {[%clk 0:00:08]}  Kd5 {[%clk 0:00:05]} 80. Rg5+ {[%clk 0:00:06]}  Kc6 {[%clk 0:00:06]} 81. Rg7 {[%clk 0:00:06]}  Kd5 {[%clk 0:00:06]} 82. Rd7+ {[%clk 0:00:06]}  Kc6 {[%clk 0:00:06]} 83. Rd8 {[%clk 0:00:07]}  Kc7 {[%clk 0:00:06]} 84. Rg8 {[%clk 0:00:06]}  Kc6 {[%clk 0:00:06]} 85. Kc4 {[%clk 0:00:07]}  Rd5 {[%clk 0:00:06]} 86. Rg6+ {[%clk 0:00:05]}  Rd6 {[%clk 0:00:06]} 87. Rg7 {[%clk 0:00:06]}  Re6 {[%clk 0:00:06]} 88. Rh7 {[%clk 0:00:05]}  Rd6 {[%clk 0:00:06]} 89. Be5 {[%clk 0:00:05]}  Re6 {[%clk 0:00:06]} 90. Kd4 {[%clk 0:00:04]}  Rg6 {[%clk 0:00:05]} 91. Rc7+ {[%clk 0:00:04]}  Kb6 {[%clk 0:00:05]} 92. Rc1 {[%clk 0:00:05]}  Rg4+ {[%clk 0:00:05]} 93. Kd5 {[%clk 0:00:05]}  Rb4 {[%clk 0:00:04]} 94. Bd4+ {[%clk 0:00:05]}  Kb7 {[%clk 0:00:04]} 95. Bc5 {[%clk 0:00:03]}  Rb5 {[%clk 0:00:04]} 96. Rh1 {[%clk 0:00:04]}  Rb2 {[%clk 0:00:03]} 97. Rh7+ {[%clk 0:00:04]}  Kc8 {[%clk 0:00:02]} 98. Kc6 {[%clk 0:00:04]}  Rd2 {[%clk 0:00:01]} 99. Bd6 {[%clk 0:00:04]}  Rc2+ {[%clk 0:00:01]} 100. Bc5 {[%clk 0:00:04]}  Rd2 {[%clk 0:00:02]} 101. Rc7+ {[%clk 0:00:05]}  Kb8 {[%clk 0:00:02]} 102. Rb7+ {[%clk 0:00:05]}  Kc8 {[%clk 0:00:02]} 103. Rc7+ {[%clk 0:00:03]}  Kb8 {[%clk 0:00:02]} 104. Rg7 {[%clk 0:00:04]}  Kc8 {[%clk 0:00:02]} 105. Ra7 {[%clk 0:00:03]}  Kb8 {[%clk 0:00:02]} 106. Ra3 {[%clk 0:00:03]}  Rb2 {[%clk 0:00:01]} 107. Bd6+ {[%clk 0:00:03]}  Kc8 {[%clk 0:00:02]} 108. Ra8+ {[%clk 0:00:04]} 1-0


[Site "https://www.chess.com"]

[Event "Titled Tuesday Blitz December 06 Early 2022"]
[White "Carrasco Miranda, Andres"]
[Black "Borgaonkar Akshay"]
[WhiteFideId "3405990"]
[BlackFideId "25639110"]
[WhiteElo "2183"]
[BlackElo "2063"]
[Result "0-1"]
[Round "05"]
[TimeControl "180+1"]
[Date "2022.12.07"]
[WhiteClock "0:01:51"]
[BlackClock "0:01:51"]

1. d4 {[%clk 0:02:56]}  Nf6 {[%clk 0:02:59]} 2. c4 {[%clk 0:02:55]}  e6 {[%clk 0:02:59]} 3. g3 {[%clk 0:02:54]}  d5 {[%clk 0:02:58]} 4. Bg2 {[%clk 0:02:54]}  Be7 {[%clk 0:02:58]} 5. Nf3 {[%clk 0:02:55]}  dxc4 {[%clk 0:02:57]} 6. O-O {[%clk 0:02:55]}  O-O {[%clk 0:02:57]} 7. Qc2 {[%clk 0:02:55]}  Nc6 {[%clk 0:02:56]} 8. Qxc4 {[%clk 0:02:55]}  Bd7 {[%clk 0:02:55]} 9. Rd1 {[%clk 0:02:55]}  a6 {[%clk 0:02:52]} 10. a4 {[%clk 0:02:54]}  Na5 {[%clk 0:02:50]} 11. Qc2 {[%clk 0:02:54]}  Nc6 {[%clk 0:02:48]} 12. Nc3 {[%clk 0:02:54]}  Nb4 {[%clk 0:02:48]} 13. Qb3 {[%clk 0:02:54]}  Bc6 {[%clk 0:02:46]} 14. Bg5 {[%clk 0:02:52]}  Nfd5 {[%clk 0:02:45]} 15. Bxe7 {[%clk 0:02:48]}  Qxe7 {[%clk 0:02:44]} 16. Ne5 {[%clk 0:02:49]}  a5 {[%clk 0:02:39]} 17. Nxc6 {[%clk 0:02:48]}  bxc6 {[%clk 0:02:38]} 18. e4 {[%clk 0:02:47]}  Nb6 {[%clk 0:02:34]} 19. Na2 {[%clk 0:02:34]}  Nxa2 {[%clk 0:02:13]} 20. Qxa2 {[%clk 0:02:33]}  Rfd8 {[%clk 0:02:11]} 21. Rac1 {[%clk 0:02:32]}  Qb4 {[%clk 0:02:05]} 22. Rxc6 {[%clk 0:02:27]}  Rxd4 {[%clk 0:02:05]} 23. Rxd4 {[%clk 0:02:20]}  Qxd4 {[%clk 0:02:06]} 24. Qb3 {[%clk 0:02:08]}  Qxa4 {[%clk 0:01:58]} 25. Rxb6 {[%clk 0:02:08]}  Qa1+ {[%clk 0:01:58]} 26. Bf1 {[%clk 0:02:07]}  cxb6 {[%clk 0:01:58]} 27. Qxb6 {[%clk 0:02:08]}  a4 {[%clk 0:01:55]} 28. Qc6 {[%clk 0:02:02]}  Rd8 {[%clk 0:01:54]} 29. Kg2 {[%clk 0:02:01]}  Qxb2 {[%clk 0:01:53]} 30. Qxa4 {[%clk 0:02:00]}  Qd4 {[%clk 0:01:53]} 31. Qxd4 {[%clk 0:01:54]}  Rxd4 {[%clk 0:01:52]} 32. Kf3 {[%clk 0:01:55]}  e5 {[%clk 0:01:53]} 33. h4 {[%clk 0:01:54]}  f6 {[%clk 0:01:53]} 34. Ke3 {[%clk 0:01:54]}  Kf8 {[%clk 0:01:54]} 35. f4 {[%clk 0:01:53]}  Ke7 {[%clk 0:01:55]} 36. Bh3 {[%clk 0:01:53]}  g6 {[%clk 0:01:53]} 37. Bg4 {[%clk 0:01:51]}  Ra4 {[%clk 0:01:49]} 38. Bh3 {[%clk 0:01:50]}  Ra3+ {[%clk 0:01:50]} 39. Kf2 {[%clk 0:01:51]}  exf4 {[%clk 0:01:51]} 0-1


[Site "https://www.chess.com"]

[Event "Titled Tuesday Blitz December 06 Early 2022"]
[White "Chernomordik, Pavel"]
[Black "Ray, Sarathi"]
[WhiteFideId "2804530"]
[BlackFideId "2032490"]
[WhiteElo "2193"]
[BlackElo "2029"]
[Result "1-0"]
[Round "05"]
[TimeControl "180+1"]
[Date "2022.12.07"]
[WhiteClock "0:01:32"]
[BlackClock "0:01:06"]

1. e4 {[%clk 0:03:00]}  c5 {[%clk 0:02:57]} 2. Nc3 {[%clk 0:03:00]}  Nc6 {[%clk 0:02:56]} 3. Bb5 {[%clk 0:02:59]}  Nd4 {[%clk 0:02:49]} 4. Bc4 {[%clk 0:02:58]}  e6 {[%clk 0:02:48]} 5. Nge2 {[%clk 0:02:57]}  Nc6 {[%clk 0:02:43]} 6. O-O {[%clk 0:02:52]}  g6 {[%clk 0:02:43]} 7. d4 {[%clk 0:02:49]}  cxd4 {[%clk 0:02:38]} 8. Nxd4 {[%clk 0:02:46]}  Bg7 {[%clk 0:02:37]} 9. Ndb5 {[%clk 0:02:44]}  Bf8 {[%clk 0:02:25]} 10. Bf4 {[%clk 0:02:40]}  e5 {[%clk 0:02:23]} 11. Qd5 {[%clk 0:02:26]}  Qe7 {[%clk 0:01:29]} 12. Bg5 {[%clk 0:02:09]}  f6 {[%clk 0:01:26]} 13. Be3 {[%clk 0:02:00]}  Kd8 {[%clk 0:01:21]} 14. Qd2 {[%clk 0:01:48]}  Qb4 {[%clk 0:01:14]} 15. Bb3 {[%clk 0:01:35]}  a6 {[%clk 0:01:14]} 16. Bb6+ {[%clk 0:01:33]}  Ke7 {[%clk 0:01:06]} 17. Nd5+ {[%clk 0:01:32]} 1-0


[Site "https://www.chess.com"]

[Event "Titled Tuesday Blitz December 06 Early 2022"]
[White "Chlpik, Martin"]
[Black "Liu, Casper"]
[WhiteFideId "14923351"]
[BlackFideId "1454153"]
[WhiteElo "2109"]
[BlackElo "2217"]
[Result "1-0"]
[Round "05"]
[TimeControl "180+1"]
[Date "2022.12.07"]
[WhiteClock "0:00:27"]
[BlackClock "0:00:52"]

1. d4 {[%clk 0:03:00]}  Nf6 {[%clk 0:02:56]} 2. c4 {[%clk 0:03:00]}  e6 {[%clk 0:02:56]} 3. Nc3 {[%clk 0:02:59]}  d5 {[%clk 0:02:57]} 4. e3 {[%clk 0:02:54]}  dxc4 {[%clk 0:02:54]} 5. Bxc4 {[%clk 0:02:54]}  c5 {[%clk 0:02:55]} 6. Nf3 {[%clk 0:02:54]}  Nc6 {[%clk 0:02:55]} 7. O-O {[%clk 0:02:53]}  cxd4 {[%clk 0:02:55]} 8. exd4 {[%clk 0:02:53]}  a6 {[%clk 0:02:55]} 9. a3 {[%clk 0:02:53]}  Be7 {[%clk 0:02:55]} 10. Bg5 {[%clk 0:02:46]}  O-O {[%clk 0:02:55]} 11. Re1 {[%clk 0:02:38]}  h6 {[%clk 0:02:50]} 12. Bh4 {[%clk 0:02:37]}  Nd5 {[%clk 0:02:45]} 13. Bxe7 {[%clk 0:02:32]}  Ncxe7 {[%clk 0:02:46]} 14. Qd2 {[%clk 0:02:30]}  b5 {[%clk 0:02:46]} 15. Bb3 {[%clk 0:02:22]}  Nxc3 {[%clk 0:02:43]} 16. bxc3 {[%clk 0:02:21]}  Bb7 {[%clk 0:02:44]} 17. Ne5 {[%clk 0:02:16]}  Nd5 {[%clk 0:02:38]} 18. a4 {[%clk 0:02:06]}  Qh4 {[%clk 0:02:37]} 19. Nf3 {[%clk 0:01:49]}  Qg4 {[%clk 0:02:35]} 20. h3 {[%clk 0:01:47]}  Qg6 {[%clk 0:02:26]} 21. Bc2 {[%clk 0:01:45]}  Qh5 {[%clk 0:02:25]} 22. Re5 {[%clk 0:01:39]}  f5 {[%clk 0:02:20]} 23. Rxe6 {[%clk 0:01:38]}  Nf6 {[%clk 0:01:51]} 24. Bb3 {[%clk 0:01:09]}  Kh8 {[%clk 0:01:45]} 25. d5 {[%clk 0:01:08]}  Rad8 {[%clk 0:01:38]} 26. Ne5 {[%clk 0:00:59]}  Bxd5 {[%clk 0:01:08]} 27. Bxd5 {[%clk 0:00:56]}  Rxd5 {[%clk 0:01:09]} 28. Ng6+ {[%clk 0:00:38]}  Kg8 {[%clk 0:01:07]} 29. Ne7+ {[%clk 0:00:35]}  Kf7 {[%clk 0:01:02]} 30. Rxf6+ {[%clk 0:00:35]}  gxf6 {[%clk 0:01:01]} 31. Nxd5 {[%clk 0:00:34]}  Rd8 {[%clk 0:01:02]} 32. Rd1 {[%clk 0:00:30]}  f4 {[%clk 0:01:02]} 33. Qd4 {[%clk 0:00:28]}  Rd6 {[%clk 0:00:55]} 34. Qa7+ {[%clk 0:00:27]}  Kf8 {[%clk 0:00:53]} 35. Qe7+ {[%clk 0:00:27]}  Kg8 {[%clk 0:00:53]} 36. Qxd6 {[%clk 0:00:27]}  Qxd1+ {[%clk 0:00:53]} 37. Kh2 {[%clk 0:00:27]}  Qd2 {[%clk 0:00:53]} 38. Nxf6+ {[%clk 0:00:27]}  Kh8 {[%clk 0:00:52]} 39. Qxd2 {[%clk 0:00:27]}  f3 {[%clk 0:00:52]} 40. Qxh6# {[%clk 0:00:27]} 1-0


[Site "https://www.chess.com"]

[Event "Titled Tuesday Blitz December 06 Early 2022"]
[White "Czopor, Maciej"]
[Black "Grot, Blazej"]
[WhiteFideId "21805431"]
[BlackFideId "21835845"]
[WhiteElo "2324"]
[BlackElo "1823"]
[Result "1-0"]
[Round "05"]
[TimeControl "180+1"]
[Date "2022.12.07"]
[WhiteClock "0:00:05"]
[BlackClock "0:00:01"]

1. c4 {[%clk 0:02:50]}  c6 {[%clk 0:02:55]} 2. b3 {[%clk 0:02:48]}  d5 {[%clk 0:02:55]} 3. Bb2 {[%clk 0:02:49]}  Nf6 {[%clk 0:02:55]} 4. Nf3 {[%clk 0:02:49]}  Bf5 {[%clk 0:02:55]} 5. d3 {[%clk 0:02:49]}  e6 {[%clk 0:02:55]} 6. g3 {[%clk 0:02:50]}  Bd6 {[%clk 0:02:55]} 7. Bg2 {[%clk 0:02:50]}  O-O {[%clk 0:02:55]} 8. O-O {[%clk 0:02:51]}  Nbd7 {[%clk 0:02:56]} 9. Nh4 {[%clk 0:02:51]}  Bg6 {[%clk 0:02:55]} 10. Nxg6 {[%clk 0:02:51]}  hxg6 {[%clk 0:02:56]} 11. Nd2 {[%clk 0:02:52]}  Qc7 {[%clk 0:02:55]} 12. e3 {[%clk 0:02:48]}  e5 {[%clk 0:02:55]} 13. Qe2 {[%clk 0:02:48]}  Rfe8 {[%clk 0:02:55]} 14. Rfd1 {[%clk 0:02:48]}  a5 {[%clk 0:02:52]} 15. a3 {[%clk 0:02:46]}  Rac8 {[%clk 0:02:47]} 16. h4 {[%clk 0:02:45]}  Qb8 {[%clk 0:02:44]} 17. g4 {[%clk 0:02:35]}  b5 {[%clk 0:02:39]} 18. g5 {[%clk 0:02:27]}  Nh7 {[%clk 0:02:15]} 19. cxd5 {[%clk 0:02:26]}  cxd5 {[%clk 0:02:12]} 20. Bxd5 {[%clk 0:02:21]}  Rc2 {[%clk 0:02:00]} 21. Rab1 {[%clk 0:02:22]}  e4 {[%clk 0:01:21]} 22. dxe4 {[%clk 0:02:13]}  Be5 {[%clk 0:00:28]} 23. Bxe5 {[%clk 0:01:51]}  Qxe5 {[%clk 0:00:23]} 24. Qf3 {[%clk 0:01:49]}  Qe7 {[%clk 0:00:19]} 25. Nf1 {[%clk 0:01:44]}  Ne5 {[%clk 0:00:18]} 26. Qg3 {[%clk 0:01:44]}  Qxa3 {[%clk 0:00:17]} 27. f4 {[%clk 0:01:34]}  Nd7 {[%clk 0:00:13]} 28. Bxf7+ {[%clk 0:01:29]}  Kxf7 {[%clk 0:00:11]} 29. Rxd7+ {[%clk 0:01:30]}  Re7 {[%clk 0:00:12]} 30. Rxe7+ {[%clk 0:01:29]}  Qxe7 {[%clk 0:00:12]} 31. e5 {[%clk 0:01:28]}  Nf8 {[%clk 0:00:11]} 32. h5 {[%clk 0:01:14]}  gxh5 {[%clk 0:00:07]} 33. f5 {[%clk 0:01:12]}  Qc5 {[%clk 0:00:05]} 34. g6+ {[%clk 0:01:04]}  Kg8 {[%clk 0:00:03]} 35. Rd1 {[%clk 0:01:00]}  Qc7 {[%clk 0:00:02]} 36. e6 {[%clk 0:00:44]}  Qe7 {[%clk 0:00:01]} 37. Ra1 {[%clk 0:00:14]}  Qf6 {[%clk 0:00:02]} 38. Rxa5 {[%clk 0:00:09]}  Qc3 {[%clk 0:00:02]} 39. e7 {[%clk 0:00:05]}  Qxa5 {[%clk 0:00:02]} 40. e8=Q {[%clk 0:00:04]}  Rc1 {[%clk 0:00:01]} 41. Qf7+ {[%clk 0:00:04]}  Kh8 {[%clk 0:00:01]} 42. Qxf8# {[%clk 0:00:05]} 1-0


[Site "https://www.chess.com"]

[Event "Titled Tuesday Blitz December 06 Early 2022"]
[White "Dardha, Daniel"]
[Black "Jobava, Baadur"]
[WhiteFideId "240990"]
[BlackFideId "13601520"]
[WhiteElo "2528"]
[BlackElo "2582"]
[Result "0-1"]
[Round "05"]
[TimeControl "180+1"]
[Date "2022.12.06"]
[WhiteClock "0:00:05"]
[BlackClock "0:00:47"]

1. c4 {[%clk 0:03:00]}  e5 {[%clk 0:02:56]} 2. g3 {[%clk 0:03:00]}  c6 {[%clk 0:02:56]} 3. d4 {[%clk 0:02:58]}  d6 {[%clk 0:02:56]} 4. Nc3 {[%clk 0:02:57]}  Be7 {[%clk 0:02:56]} 5. Nf3 {[%clk 0:02:57]}  Nd7 {[%clk 0:02:55]} 6. Bg2 {[%clk 0:02:57]}  Ngf6 {[%clk 0:02:55]} 7. O-O {[%clk 0:02:57]}  O-O {[%clk 0:02:56]} 8. e4 {[%clk 0:02:57]}  Qe8 {[%clk 0:02:56]} 9. Qc2 {[%clk 0:02:56]}  Bd8 {[%clk 0:02:56]} 10. Rd1 {[%clk 0:02:55]}  Bb6 {[%clk 0:02:52]} 11. b3 {[%clk 0:02:52]}  exd4 {[%clk 0:02:36]} 12. Nxd4 {[%clk 0:02:53]}  Ne5 {[%clk 0:02:37]} 13. Ba3 {[%clk 0:02:45]}  Bc5 {[%clk 0:02:35]} 14. Bxc5 {[%clk 0:02:36]}  dxc5 {[%clk 0:02:35]} 15. Nde2 {[%clk 0:02:35]}  Bg4 {[%clk 0:02:34]} 16. h3 {[%clk 0:02:32]}  Nf3+ {[%clk 0:02:31]} 17. Kh1 {[%clk 0:02:17]}  Nd4 {[%clk 0:02:30]} 18. Qd3 {[%clk 0:02:14]}  Bxe2 {[%clk 0:02:21]} 19. Nxe2 {[%clk 0:02:15]}  Rd8 {[%clk 0:02:21]} 20. f4 {[%clk 0:01:53]}  Qe7 {[%clk 0:02:04]} 21. e5 {[%clk 0:01:39]}  Nh5 {[%clk 0:02:04]} 22. Nxd4 {[%clk 0:01:37]}  Rxd4 {[%clk 0:02:03]} 23. Qf3 {[%clk 0:01:37]}  g6 {[%clk 0:02:01]} 24. Rxd4 {[%clk 0:01:37]}  cxd4 {[%clk 0:02:01]} 25. Re1 {[%clk 0:01:30]}  Rd8 {[%clk 0:01:54]} 26. g4 {[%clk 0:01:28]}  Ng7 {[%clk 0:01:38]} 27. f5 {[%clk 0:01:28]}  d3 {[%clk 0:01:33]} 28. e6 {[%clk 0:01:21]}  d2 {[%clk 0:01:10]} 29. Rd1 {[%clk 0:01:04]}  gxf5 {[%clk 0:01:10]} 30. gxf5 {[%clk 0:01:03]}  Qf6 {[%clk 0:01:09]} 31. exf7+ {[%clk 0:00:32]}  Kxf7 {[%clk 0:01:10]} 32. Rf1 {[%clk 0:00:22]}  Nxf5 {[%clk 0:00:54]} 33. Qh5+ {[%clk 0:00:13]}  Kg7 {[%clk 0:00:54]} 34. Qg4+ {[%clk 0:00:13]}  Qg6 {[%clk 0:00:51]} 35. Qxg6+ {[%clk 0:00:03]}  hxg6 {[%clk 0:00:50]} 36. Bf3 {[%clk 0:00:03]}  Ne3 {[%clk 0:00:50]} 37. Rf2 {[%clk 0:00:03]}  d1=Q+ {[%clk 0:00:50]} 38. Bxd1 {[%clk 0:00:04]}  Rxd1+ {[%clk 0:00:50]} 39. Kh2 {[%clk 0:00:05]}  Rd2 {[%clk 0:00:47]} 0-1


[Site "https://www.chess.com"]

[Event "Titled Tuesday Blitz December 06 Early 2022"]
[White "Darini, Pouria"]
[Black "Buscar, Michael"]
[WhiteFideId "12502200"]
[BlackFideId "2603616"]
[WhiteElo "2482"]
[BlackElo "2010"]
[Result "1-0"]
[Round "05"]
[TimeControl "180+1"]
[Date "2022.12.07"]
[WhiteClock "0:01:00"]
[BlackClock "0:00:20"]

1. c4 {[%clk 0:03:00]}  Nf6 {[%clk 0:02:43]} 2. Nf3 {[%clk 0:03:00]}  e6 {[%clk 0:02:42]} 3. g3 {[%clk 0:02:53]}  b6 {[%clk 0:02:41]} 4. Bg2 {[%clk 0:02:53]}  Bb7 {[%clk 0:02:41]} 5. O-O {[%clk 0:02:53]}  c5 {[%clk 0:02:39]} 6. Nc3 {[%clk 0:02:50]}  Be7 {[%clk 0:02:37]} 7. d4 {[%clk 0:02:42]}  cxd4 {[%clk 0:02:35]} 8. Qxd4 {[%clk 0:02:42]}  O-O {[%clk 0:02:29]} 9. Rd1 {[%clk 0:02:43]}  a6 {[%clk 0:02:19]} 10. Bf4 {[%clk 0:02:28]}  Nc6 {[%clk 0:02:05]} 11. Qd2 {[%clk 0:02:24]}  Ra7 {[%clk 0:01:52]} 12. Bd6 {[%clk 0:02:20]}  Bxd6 {[%clk 0:01:48]} 13. Qxd6 {[%clk 0:02:21]}  Qb8 {[%clk 0:01:48]} 14. b3 {[%clk 0:02:10]}  Rd8 {[%clk 0:01:38]} 15. Qxb8 {[%clk 0:01:52]}  Nxb8 {[%clk 0:01:33]} 16. Rd6 {[%clk 0:01:51]}  Bc6 {[%clk 0:01:26]} 17. Rad1 {[%clk 0:01:48]}  Ne8 {[%clk 0:01:24]} 18. R6d2 {[%clk 0:01:45]}  d6 {[%clk 0:01:21]} 19. e4 {[%clk 0:01:23]}  Rad7 {[%clk 0:01:17]} 20. Nd4 {[%clk 0:01:18]}  Bb7 {[%clk 0:01:10]} 21. Na4 {[%clk 0:01:18]}  b5 {[%clk 0:00:57]} 22. cxb5 {[%clk 0:01:18]}  axb5 {[%clk 0:00:58]} 23. Nb6 {[%clk 0:01:15]}  b4 {[%clk 0:00:48]} 24. Nxd7 {[%clk 0:01:12]}  Nxd7 {[%clk 0:00:46]} 25. Nb5 {[%clk 0:01:06]}  Ne5 {[%clk 0:00:18]} 26. Nxd6 {[%clk 0:01:02]}  Ba6 {[%clk 0:00:18]} 27. Nxe8 {[%clk 0:01:01]}  Rxe8 {[%clk 0:00:19]} 28. Rd8 {[%clk 0:01:01]}  Kf8 {[%clk 0:00:20]} 29. Rxe8+ {[%clk 0:01:02]}  Kxe8 {[%clk 0:00:20]} 30. f4 {[%clk 0:01:00]} 1-0


[Site "https://www.chess.com"]

[Event "Titled Tuesday Blitz December 06 Early 2022"]
[White "De Souza, Cristiano Gomes"]
[Black "Quizon, Daniel"]
[WhiteFideId "2151758"]
[BlackFideId "5217911"]
[WhiteElo "2068"]
[BlackElo "2385"]
[Result "0-1"]
[Round "05"]
[TimeControl "180+1"]
[Date "2022.12.07"]
[WhiteClock "0:02:12"]
[BlackClock "0:02:42"]

1. d4 {[%clk 0:03:00]}  Nf6 {[%clk 0:02:58]} 2. c4 {[%clk 0:03:01]}  g6 {[%clk 0:02:58]} 3. Nc3 {[%clk 0:03:01]}  Bg7 {[%clk 0:02:58]} 4. e4 {[%clk 0:03:01]}  d6 {[%clk 0:02:58]} 5. Nf3 {[%clk 0:03:00]}  O-O {[%clk 0:02:59]} 6. Be2 {[%clk 0:03:00]}  e5 {[%clk 0:02:56]} 7. O-O {[%clk 0:03:00]}  Nc6 {[%clk 0:02:55]} 8. d5 {[%clk 0:03:00]}  Ne7 {[%clk 0:02:55]} 9. Ne1 {[%clk 0:03:00]}  a5 {[%clk 0:02:56]} 10. Be3 {[%clk 0:03:00]}  b6 {[%clk 0:02:56]} 11. Nd3 {[%clk 0:02:59]}  Nd7 {[%clk 0:02:57]} 12. a3 {[%clk 0:02:58]}  f5 {[%clk 0:02:58]} 13. f3 {[%clk 0:02:58]}  f4 {[%clk 0:02:58]} 14. Bf2 {[%clk 0:02:59]}  g5 {[%clk 0:02:59]} 15. b4 {[%clk 0:03:00]}  h5 {[%clk 0:02:59]} 16. c5 {[%clk 0:03:00]}  Ng6 {[%clk 0:02:57]} 17. Rc1 {[%clk 0:03:00]}  Nf6 {[%clk 0:02:56]} 18. cxd6 {[%clk 0:03:00]}  cxd6 {[%clk 0:02:56]} 19. Nb5 {[%clk 0:03:00]}  g4 {[%clk 0:02:54]} 20. Nb2 {[%clk 0:02:52]}  h4 {[%clk 0:02:53]} 21. fxg4 {[%clk 0:02:50]}  Nxe4 {[%clk 0:02:53]} 22. Qe1 {[%clk 0:02:39]}  Ng5 {[%clk 0:02:43]} 23. Bd3 {[%clk 0:02:35]}  e4 {[%clk 0:02:41]} 24. Bc4 {[%clk 0:02:20]}  Bxb2 {[%clk 0:02:41]} 25. Rc2 {[%clk 0:02:16]}  Be5 {[%clk 0:02:41]} 26. Bxh4 {[%clk 0:02:15]}  Nxh4 {[%clk 0:02:41]} 27. Qxh4 {[%clk 0:02:14]}  Nf3+ {[%clk 0:02:41]} 28. gxf3 {[%clk 0:02:12]}  Qxh4 {[%clk 0:02:42]} 0-1


[Site "https://www.chess.com"]